Workbook

Sheet tabulky
A2: Skupina A - kurt | C2: Jaroš Š Fejka Š | D2: Vondráček Mrzena P | E2: Hájek P Kačín O | F2: Bělohlávek P Hovorka H | G2: Pořadí | H2: Počet vítězství
A3: A1 | B3: Jaroš Š Fejka Š | D3: 4-0 | E3: 4-1 | F3: 4-0 | G3: 1. | H3: 3
A4: A2 | B4: Vondráček S Mrzena P | C4: 0-4 | E4: 0-4 | F4: 2-4 | G4: 4. | H4: 0
A5: A3 | B5: Hájek P Kačín O | C5: 1-4 | D5: 4-0 | F5: 4-0 | G5: 2. | H5: 2
A6: A4 | B6: Bělohlávek P Hovorka H | C6: 0-4 | D6: 4-2 | E6: 0-4 | G6: 3. | H6: 1
A7: Skupina B - kurt | C7: Michna G,Michna L | D7: Sirový Š ,Silina K | E7: Kafka M Trojan M | F7: Bervid W Štefaník A | G7: Pořadí | H7: Počet vítězství
A8: B1 | B8: Michna G,Michna L | D8: 4-1 | E8: 4-1 | F8: 4-0 | G8: 1. | H8: 3
A9: B2 | B9: Sirový Š ,Silina K | C9: 1-4 | E9: 1-4 | F9: 4-1 | G9: 3. | H9: 1
A10: B3 | B10: Kafka M Trojan M | C10: 1-4 | D10: 4-1 | F10: 4-3 | G10: 2. | H10: 2
A11: B4 | B11: Bervid W Štefaník A | C11: 0-4 | D11: 1-4 | E11: 3-4 | G11: 4. | H11: 0
A12: Skupina C - kurt | C12: Janoušek Š Štěpánek A | D12: Toman K Polášek O | E12: Staňková L Jiráková S | F12: Farajpourová A Mottlová S | G12: Pořadí | H12: Počet vítězství
A13: C1 | B13: Janoušek Š Štěpánek A | D13: 2-4 | E13: 4-1 | F13: 4-2 | G13: 2. | H13: 2
A14: C2 | B14: Toman K Polášek O | C14: 4-2 | E14: 4-2 | F14: 4-2 | G14: 1. | H14: 3
A15: C3 | B15: Staňková L Jiráková S | C15: 1-4 | D15: 2-4 | F15: 4-3 | G15: 3. | H15: 1
A16: C4 | B16: Farajpourová A Mottlová S | C16: 2-4 | D16: 2-4 | E16: 3-4 | G16: 4. | H16: 0
A17: Skupina D - kurt | C17: Jelínková A Horáček F | D17: Hadrabová R Střihavková N | E17: Petrásek E Gabrielová E | F17: Hron L Roček E | G17: Pořadí | H17: Počet vítězství
A18: D1 | B18: Jelínková A Horáček F | D18: 4-2 | E18: 4-0 | F18: 3-4 | G18: 2. | H18: 2
A19: D2 | B19: Hadrabová R Střihavková N | C19: 2-4 | E19: 4-3 | F19: 2-4 | G19: 3. | H19: 1
A20: D3 | B20: Petrásek E Gabrielová E | C20: 0-4 | D20: 3-4 | F20: 0-4 | G20: 4. | H20: 0
A21: D4 | B21: Hron L Roček E | C21: 4-3 | D21: 4-2 | E21: 4-0 | G21: 1. | H21: 3
A22: Skupina E | C22: Šebek F Zapský T | D22: Zikmund A,Waigert | E22: Krejčíková V,Pěnčíková T | F22: Řehoř Drábek | G22: Pořadí | H22: Počet vítězství
A23: E1 | B23: Šebek F Zapský T | D23: 1-4 | E23: 4-1 | F23: 4-3 | G23: 1. | H23: 2
A24: E2 | B24: Zikmund A,Weigert M | C24: 4-1 | E24: 1-4 | F24: 1-4 | G24: 4. | H24: 1
A25: E3 | B25: Krejčíková V,Pěnčíková T | C25: 1-4 | D25: 4-1 | F25: 4-0 | G25: 2. | H25: 2
A26: E4 | B26: Řehoř B Drábek J | C26: 3-4 | D26: 4-1 | E26: 0-4 | G26: 3. | H26: 1
A27: E5
A29: Skupina F
A30: F1
A31: F2
A32: F3
A33: F4
A34: F5

Sheet Pavouk čtyřhry
B4: Jaroš V,Fejka Š
C6: Jaroš V, Fejka Š
A7: Pěnčíková T,Krejčíková V | C7: 4/2
B8: Pěnčíková T,Krejčíková V
A9: Kafka M, Trojan M | B9: 4-1
D11: Jaroš V, Fejka Š
B12: Janoušek Š, Štěpánek A | D12: 4-1
C14: Janoušek Š. Štěpánek A | G14: ě
C15: 4-0
B16: Hron L , Roček E
D17: Jaroš V, Fejka Š
D18: 4/3
B20: Polášek O,Toman K
C22: Šebek F,Zapský T
C23: 4-2
B24: Šebek F ,Zapský T
D26: Kačín O,Hájek P
A27: Horáček F,Jelínková A | D27: 4/1
B28: Kačín O,Hájek P
A29: Kačín O,Hájek P | B29: 4-0
C30: Kačín O,Hájek P
C31: 4/2
B32: Michna G Michna L

Sheet Pořadí chlapci
A1: POŘADÍ - SPARTA HEAD BABYTENIS TOUR LÉTO 2020 - CHLAPCI
A24: Pořadí | B24: Příjmení | C24: 1. turnaj | D24: 2. turnaj | E24: 3. turnaj | F24: Masters | G24: Celkem
A25: 1. | B25: Fejka Štěpán | C25: 300 | D25: 150 | G25: =SUM(C25:F25) -> 450
A26: 2. | B26: Štěpánek Adam | C26: 250 | D26: 100 | G26: =SUM(C26:F26) -> 350
A27: 3. | B27: Zapský T | C27: 200 | D27: 100 | G27: =SUM(C27:F27) -> 300
A28: 4.-5. | B28: Michna Gabriel | C28: 200 | D28: 50 | G28: =SUM(C28:F28) -> 250
B29: Jaroš Vojta | C29: 100 | D29: 150 | G29: =SUM(C29:F29) -> 250
A30: 6. | B30: Janoušek Šimon | C30: 100 | D30: 100 | G30: =SUM(C30:F30) -> 200
A31: 7.-8, | B31: Kačín Ondřej | C31: 0 | D31: 125 | G31: =SUM(C31:F31) -> 125 | K31: Pořadí chlapci
B32: Hájek Petr | C32: 0 | D32: 125 | G32: =C32+D32 -> 125
A33: 9. | B33: Řehoř Benjamin | C33: 100 | D33: 10 | G33: =C33+D33 -> 110
A34: 10.-11. | B34: Motal David | C34: 100 | D34: 0 | G34: =SUM(C34:F34) -> 100
B35: Šebek Filip | C35: 0 | D35: 100 | G35: =SUM(C35:F35) -> 100
A36: 12.-15 | B36: Polášek Oliver | C36: 0 | D36: 50 | G36: =C36+D36 -> 50
B37: Roček Eduard | C37: 0 | D37: 50 | G37: =SUM(C37:F37) -> 50
B38: Toman Karel | C38: 0 | D38: 50 | G38: =C38+D38 -> 50
B39: Hron Lukáš | C39: 0 | D39: 50 | G39: =C39+D39 -> 50
A40: 16. | B40: Horáček Filip | C40: 20 | D40: 25 | G40: =SUM(C40:F40) -> 45
A41: 17.-19. | B41: Bervid William | C41: 20 | D41: 5 | G41: =SUM(C41:F41) -> 25
B42: Kafka Michal | C42: 0 | D42: 25 | G42: =C42+D42 -> 25
B43: Trojan Max | C43: 0 | D43: 25 | G43: =C43+D43 -> 25
A44: 20.-21. | B44: Coxon Ben | C44: 20 | D44: 0 | G44: =C44+D44 -> 20
B45: Wollner Filip | C45: 20 | D45: 0 | G45: =SUM(C45:F45) -> 20
A46: 22. | B46: Vondráček Samuel Cristian | C46: 10 | D46: 5 | G46: =SUM(C46:F46) -> 15
A47: 23.- | B47: Ulč Martin | C47: 10 | D47: 0 | G47: =C47+D47 -> 10
B48: Miketa Matias | C48: 10 | D48: 0 | G48: =SUM(C48:F48) -> 10
B49: Mikeš David | C49: 10 | D49: 0 | G49: =SUM(C49:F49) -> 10
B50: Drábek Jan | C50: 0 | D50: 10 | G50: =C50+D50 -> 10
B51: Sirový Šimon | C51: 0 | D51: 10 | G51: =C51+D51 -> 10
A52: 27.-33. | B52: Raev David | C52: 5 | D52: 0 | G52: =SUM(C52:F52) -> 5
B53: Bezouška Antonín | C53: 5 | D53: 0 | G53: =C53+D53 -> 5
B54: Hampl Viktor | C54: 5 | D54: 0 | G54: =C54+D54 -> 5
B55: Štefaník Antonín | C55: 0 | D55: 5 | G55: =C55+D55 -> 5
B56: Zikmund Adam | C56: 0 | D56: 5 | G56: =C56+D56 -> 5
B57: Weigert Matyáš | C57: 0 | D57: 5 | G57: =C57+D57 -> 5
B58: Mrzena patrik | C58: 0 | D58: 5 | G58: =C58+D58 -> 5
G59: =C59+D59 -> 0
G60: 0

Sheet Pořadí dívky
A1: POŘADÍ - SPARTA HEAD BABYTENIS TOUR LÉTO 2020 - DÍVKY
A24: Pořadí | B24: Příjmení | C24: 1. turnaj | D24: 2. turnaj | E24: 3. turnaj | F24: Masters | G24: Celkem
A25: 1. | B25: Tománková Denisa | C25: 300 | D25: 0 | G25: =SUM(C25:F25) -> 300
A26: 2. | B26: Jelínková Adéla | C26: 250 | D26: 25 | G26: =SUM(C26:F26) -> 275
A27: 3. | B27: Michna Lisa | C27: 200 | D27: 50 | G27: =SUM(C27:F27) -> 250
A28: 4. | B28: Halfarová Eva | C28: 200 | D28: 0 | G28: =SUM(C28:F28) -> 200
A29: 5.-6. | B29: Krejčíková Viktorie | C29: 100 | D29: 50 | G29: =SUM(C29:F29) -> 150
B30: Pěnčíková Tereza | C30: 100 | D30: 50 | G30: =SUM(C30:F30) -> 150
A31: 7. | B31: Staňková Laura | C31: 100 | D31: 10 | G31: =SUM(C31:F31) -> 110
A32: 8. | B32: Stáňová šárka | C32: 100 | D32: 0 | G32: =SUM(C32:F32) -> 100
A33: 9. | B33: Hadrabová radka | C33: 50 | D33: 10 | G33: =SUM(C33:F33) -> 60
A34: 10. | B34: Korencová Hana | C34: 50 | D34: 0 | G34: =SUM(C34:F34) -> 50
A35: 11.-12. | B35: Petrásek Ella | C35: 20 | D35: 5 | G35: =SUM(C35:F35) -> 25
B36: Gabrielová Edita | C36: 20 | D36: 5 | G36: =SUM(C36:F36) -> 25
A37: 13.-15 | B37: Blechová Amálka | C37: 20 | D37: 0 | G37: =SUM(C37:F37) -> 20
B38: Jančaříková Anna | C38: 20 | D38: 0 | G38: =SUM(C38:F38) -> 20
B39: Svoboda Adéla | C39: 20 | D39: 0 | G39: =SUM(C39:F39) -> 20
A40: 16.-23. | B40: Hugová Kateřina | C40: 10 | D40: 0 | G40: =SUM(C40:F40) -> 10
B41: Merunová Veronika | C41: 10 | D41: 0 | G41: =SUM(C41:F41) -> 10
B42: Marešová Beata | C42: 10 | D42: 0 | G42: =SUM(C42:F42) -> 10
B43: Duchoňová Alice | C43: 10 | D43: 0 | G43: =SUM(C43:F43) -> 10
B44: Boudová Johana | C44: 10 | D44: 0 | G44: =SUM(C44:F44) -> 10
B45: Jiráková Sofie | C45: 0 | D45: 10 | G45: =SUM(C45:F45) -> 10
B46: Střihavková Nela | C46: 0 | D46: 10 | G46: =SUM(C46:F46) -> 10
B47: Silina Kseniia | C47: 0 | D47: 10 | G47: =SUM(C47:F47) -> 10
A48: 24.-25. | B48: Farajpourová Aínáz | C48: 0 | D48: 5 | G48: =SUM(C48:F48) -> 5
B49: Mottlová Sofie | C49: 0 | D49: 5 | G49: =SUM(C49:F49) -> 5
